bitfinex-derivatives/quotes_ETHF0:USTF0_20241018
["timestamp","ask_amount","ask_price","bid_price","bid_amount"]
[1729245427151,0.38096,2625.6,2625.5,1.75096]
[1729245427559,0.79964,2625.8,2625.7,0.38094]
[1729245427767,2.16964,2625.8,2625.7,0.38094]
[1729245427969,40.8,2626.3,2625.7,5.1788]
[1729245428259,0.78386,2626.3,2626.1,1.37]
[1729245428453,2.15386,2626.3,2626.2,2.13857]
[1729245428855,2.15386,2626.3,2626.2,0.3877]
[1729245429857,1.37,2626.3,2626.2,1.7577]
[1729245430066,1.37,2626.3,2626.2,2.13857]
[1729245430654,0.4269,2626.5,2626.2,1.7577]
[1729245430855,1.37,2626.4,2626.3,1.75085]
[1729245432169,0.38085,2626.3,2626.2,0.76856]
[1729245432364,1.7676,2626.3,2626.2,0.76856]
[1729245432661,2.14845,2626.3,2626.2,0.3877]
[1729245432869,2.54555,2626.3,2626.2,0.3877]
[1729245433068,2.54555,2626.3,2626.2,0.76857]
[1729245433554,2.54555,2626.3,2626.2,0.3877]
[1729245433865,0.7947,2626.3,2626.2,2.13857]
[1729245436665,1.17555,2626.3,2626.2,2.13857]
[1729245437165,0.7947,2626.3,2626.2,2.13857]
[1729245439763,0.3976,2626.3,2626.2,2.13857]
[1729245440168,5.38553,2626.5,2626.4,0.38084]
[1729245440467,5.0047,2626.5,2626.2,1.7577]
[1729245440665,0.38085,2626.4,2626.3,0.38085]
[1729245440868,3.6347,2626.5,2626.4,0.38084]
[1729245441067,5.38553,2626.5,2626.4,0.38084]
[1729245441263,0.38084,2626.4,2626.3,1.75085]
[1729245441468,1.75084,2626.4,2626.3,0.38085]
[1729245442978,1.75084,2626.4,2626.2,1.7577]
[1729245443277,5.0047,2626.5,2626.3,0.38085]
[1729245443477,0.38084,2626.4,2626.3,0.38085]
[1729245444269,3.6347,2626.5,2626.4,0.38084]
[1729245444475,0.8369,2626.6,2626.5,0.38083]
[1729245444669,1.37,2626.7,2626.6,0.38081]
[1729245445276,1.7508,2626.7,2626.6,0.4059]
[1729245448678,1.37,2626.7,2626.6,0.78671]
[1729245449176,1.7508,2626.7,2626.6,0.78671]
[1729245449871,1.37,2626.7,2626.6,0.78671]
[1729245450773,3.2078,2626.8,2626.7,0.3808]
[1729245451089,44.0078,2627.2,2627.1,0.38074]
[1729245451382,1.1876,2627.4,2627.1,1.37]
[1729245451579,1.1876,2627.4,2627.3,1.37]
[1729245451580,2.93831,2627.4,2627.3,1.37]
[1729245452080,0.38071,2627.3,2627.2,1.75072]
[1729245452270,1.75071,2627.3,2627.2,1.37]
[1729245453089,1.1876,2627.4,2627.2,1.75072]
[1729245453377,2.5576,2627.4,2627.3,1.75071]
[1729245453581,1.1876,2627.4,2627.3,1.75071]
[1729245453768,0.784,2627.4,2627.3,1.75071]
[1729245455181,0.38068,2627.5,2627.3,1.75071]
[1729245455380,0.38068,2627.5,2627.0,0.3874]
[1729245455381,4.95847,2627.6,2627.4,1.75069]
[1729245455570,4.95847,2627.6,2627.5,0.4234]
[1729245457382,3.2078,2627.6,2627.5,2.17408]
[1729245458482,3.58847,2627.6,2627.5,1.7934]
[1729245460690,3.2078,2627.6,2627.5,2.17408]
[1729245462483,0.38066,2627.7,2627.5,2.17408]
[1729245462683,3.2078,2627.6,2627.5,2.17408]
[1729245466988,0.4267,2627.9,2627.5,1.7934]
[1729245467289,1.23013,2627.9,2627.8,1.75064]
[1729245468681,1.23013,2627.9,2627.8,1.37]
[1729245469088,1.23013,2627.9,2627.8,1.7755]
[1729245469988,1.23013,2627.9,2627.8,2.15614]
[1729245471887,0.8495,2627.9,2627.8,2.15614]
[1729245472088,1.23012,2627.9,2627.8,2.15614]
[1729245478399,2.60012,2627.9,2627.8,2.15614]
[1729245479290,2.60012,2627.9,2627.8,1.7755]
[1729245479485,2.60012,2627.9,2627.8,1.37]
[1729245479691,2.60012,2627.9,2627.8,1.75064]
[1729245481201,1.23012,2627.9,2627.8,1.75064]
[1729245483622,1.23012,2627.9,2627.3,4.15956]
[1729245483623,9.2329,2627.9,2627.3,3.2078]
[1729245483799,1.37,2627.4,2627.2,1.37]
[1729245483994,0.38072,2627.2,2627.1,0.38073]
[1729245484190,1.37,2627.2,2626.9,3.2078]
[1729245484395,1.75073,2627.2,2627.1,1.37]
[1729245484895,1.75073,2627.2,2627.1,1.75074]
[1729245485495,0.38073,2627.2,2627.1,1.37]
[1729245488805,0.38073,2627.2,2627.1,1.75074]
[1729245496412,1.75073,2627.2,2627.1,1.75074]
[1729245500112,1.60752,2627.3,2627.2,0.38072]
[1729245500312,1.60752,2627.3,2627.2,1.75072]
[1729245501515,4.15949,2627.6,2627.2,1.37]
[1729245501516,3.2078,2627.6,2627.2,1.37]
[1729245501818,1.7507,2627.4,2627.3,2.1688]
[1729245502008,1.37,2627.4,2627.3,2.1688]
[1729245502407,1.37,2627.4,2627.3,0.7988]
[1729245503020,1.75069,2627.4,2627.3,0.7988]
[1729245503513,1.37,2627.4,2627.3,0.7988]
[1729245504721,0.38073,2627.2,2627.0,0.3948]
[1729245504913,2.1881,2627.1,2627.0,0.80935]
[1729245505113,2.98664,2627.1,2627.0,0.80935]
[1729245505316,2.6059,2627.1,2627.0,0.80935]
[1729245505621,1.2359,2627.1,2627.0,2.17935]
[1729245506607,1.61664,2627.1,2627.0,2.17935]
[1729245512019,1.61664,2627.1,2627.0,1.7986]
[1729245512221,2.98664,2627.1,2627.0,0.4286]
[1729245512519,0.38077,2626.9,2626.8,1.75077]
[1729245516917,0.38077,2626.9,2626.7,0.8257]
[1729245517222,0.38077,2626.9,2626.8,1.75078]
[1729245519824,0.38077,2626.9,2626.8,1.37]
[1729245520027,0.38077,2626.9,2626.8,1.75078]
[1729245520730,0.38077,2626.9,2626.8,1.37]
[1729245522035,1.75077,2626.9,2626.8,1.75078]
[1729245522232,1.75077,2626.9,2626.8,1.37]
[1729245522533,1.75077,2626.9,2626.8,1.75078]
[1729245522730,1.75077,2626.9,2626.8,1.37]
[1729245523635,1.75077,2626.9,2626.8,1.75078]
[1729245523932,1.75077,2626.9,2626.8,1.37]
[1729245524334,1.75077,2626.9,2626.8,1.75078]
[1729245524534,1.75077,2626.9,2626.8,1.37]
[1729245526430,0.38077,2626.9,2626.8,1.75078]
[1729245527227,0.38077,2626.9,2626.8,1.37]
[1729245527737,0.38077,2626.9,2626.8,1.75078]
[1729245528327,0.38077,2626.9,2626.8,1.37]
[1729245528532,1.37,2626.9,2626.8,1.37]
[1729245528836,1.75077,2626.9,2626.8,1.37]
[1729245530832,0.38077,2626.9,2626.8,1.37]
[1729245531036,1.75077,2626.9,2626.8,1.37]
[1729245534744,1.75077,2626.9,2626.8,1.75078]
[1729245535144,1.37,2626.9,2626.8,1.75078]
[1729245535343,0.38077,2626.9,2626.8,1.75078]
[1729245536747,1.2359,2627.1,2626.8,1.37]
[1729245536748,2.6059,2627.1,2626.8,1.37]
[1729245537047,0.38077,2626.9,2626.8,1.75078]
[1729245537434,0.38076,2627.0,2626.9,0.38076]
[1729245537939,3.2078,2627.2,2626.9,1.37]
[1729245538140,0.4173,2627.5,2627.1,1.37]
[1729245538344,2.16798,2627.5,2627.3,1.7507]
[1729245538536,2.16798,2627.5,2627.4,0.4086]
[1729245540241,0.38071,2627.3,2627.2,0.3961]
[1729245540540,1.75071,2627.3,2627.2,0.8047]
[1729245540732,1.75071,2627.3,2627.2,0.4086]
[1729245541038,2.15481,2627.3,2627.2,0.4086]
[1729245545843,2.15481,2627.3,2627.0,2.1747]
[1729245545844,0.38074,2627.1,2627.0,1.75075]
[1729245546346,0.38072,2627.2,2627.1,0.38074]
[1729245546551,0.38072,2627.2,2627.1,1.75074]
[1729245547547,1.7741,2627.3,2627.0,1.37]
[1729245547858,0.38074,2627.1,2627.0,1.75075]
[1729245548448,0.38075,2627.0,2626.9,2.16986]
[1729245548644,1.75074,2627.1,2627.0,0.38075]
[1729245549052,1.37,2627.1,2627.0,0.38075]
[1729245549251,1.37,2627.1,2626.9,1.7891]
[1729245549444,2.13925,2627.0,2626.9,0.4191]
[1729245549644,2.54095,2627.0,2626.9,0.4191]
[1729245550141,2.1602,2627.0,2626.6,4.9706]
[1729245550346,0.38079,2626.8,2626.7,1.7976]
[1729245550555,1.75079,2626.8,2626.7,1.7976]
[1729245550763,1.75079,2626.8,2626.7,0.4276]
[1729245551253,0.38081,2626.6,2626.5,1.37]
[1729245551444,1.75081,2626.6,2626.5,1.7803]
[1729245554451,1.75081,2626.6,2626.5,0.4103]
[1729245554760,2.16111,2626.6,2626.5,1.7803]
[1729245557656,0.79111,2626.6,2626.5,1.7803]
[1729245561960,2.16111,2626.6,2626.5,1.7803]
[1729245567472,0.79111,2626.6,2626.5,1.7803]
[1729245571070,0.79111,2626.6,2626.5,2.16113]
[1729245572268,0.79111,2626.6,2626.5,1.7803]
[1729245574571,2.16111,2626.6,2626.5,1.7803]
[1729245574775,2.16111,2626.6,2626.5,1.37]
[1729245582691,2.16111,2626.6,2626.5,1.75083]
[1729245586489,2.16111,2626.6,2626.5,1.37]
[1729245586690,2.16111,2626.6,2626.5,1.75083]
[1729245596405,1.7803,2626.6,2626.5,1.75083]
[1729245596597,2.16111,2626.6,2626.5,1.75083]
[1729245600697,3.6096,2626.9,2626.5,1.75083]
[1729245600698,3.6096,2626.9,2626.7,0.38079]
[1729245600905,0.95176,2627.4,2626.8,1.37]
[1729245600906,0.4198,2627.1,2626.8,1.37]
[1729245601201,7.3528,2627.6,2627.0,2.36855106]
[1729245601408,1.37,2627.4,2627.3,1.37]
[1729245601607,1.75069,2627.4,2627.3,1.37]
[1729245601798,1.75069,2627.4,2627.3,1.796]
[1729245602001,5.1764,2627.4,2627.0,0.99855106]
[1729245602195,5.1764,2627.4,2626.9,1.49934843]
[1729245602196,0.38075,2627.0,2626.9,1.37]
[1729245602409,0.38077,2626.9,2626.8,1.7921]
[1729245602709,1.7824,2626.9,2626.8,2.17288]
[1729245603309,0.78086,2627.0,2626.8,1.7921]
[1729245603310,1.7701,2627.0,2626.8,1.7921]
[1729245603507,1.7701,2627.0,2626.9,1.75077]
[1729245604209,1.7701,2627.0,2626.9,1.37]
[1729245604406,2.15085,2627.0,2626.8,2.17288]
[1729245604604,1.37,2626.9,2626.8,2.17288]
[1729245607216,0.4001,2627.0,2626.9,0.38077]
[1729245607217,1.7701,2627.0,2626.9,0.38077]
[1729245607414,1.7701,2627.0,2626.9,1.75077]
[1729245607611,0.4001,2627.0,2626.9,1.75077]
[1729245608114,0.4124,2627.1,2627.0,0.38075]
[1729245608407,3.2078,2627.3,2627.0,1.37]
[1729245608608,2.167,2627.4,2627.3,0.38071]
[1729245608808,2.167,2627.4,2627.2,1.37]
[1729245608809,2.167,2627.4,2627.2,1.75072]
[1729245609115,2.167,2627.4,2627.3,0.3874]
[1729245612415,2.167,2627.4,2627.3,1.7574]
[1729245613316,0.4163,2627.4,2627.3,1.7574]
[1729245613512,1.7863,2627.4,2627.3,2.13811]
[1729245613720,0.4163,2627.4,2627.3,2.13811]
[1729245614116,0.79699,2627.4,2627.3,2.13811]
[1729245614316,0.79699,2627.4,2627.3,1.7574]
[1729245614819,0.4163,2627.4,2627.3,2.13811]
[1729245615124,0.4122,2627.6,2627.3,1.7574]
[1729245615323,3.2078,2627.8,2627.6,0.38066]
[1729245615324,4.01084,2627.8,2627.6,0.38066]
[1729245615523,3.6302,2627.8,2627.7,2.16995]
[1729245615719,0.80304,2627.8,2627.7,1.7893]
[1729245618125,2.56604,2627.8,2627.7,0.4193]
[1729245618522,2.1854,2627.8,2627.4,0.4181]
[1729245618737,1.37,2627.5,2627.4,2.58309]
[1729245619235,2.14368,2627.5,2627.4,2.58309]
[1729245619416,2.14368,2627.5,2627.4,2.2024]
[1729245621232,2.14368,2627.5,2627.4,2.16499]
[1729245621535,2.14368,2627.5,2627.4,1.7843]
[1729245621940,2.14368,2627.5,2627.4,2.16499]
[1729245623026,2.14368,2627.5,2627.4,1.7843]
[1729245623232,2.14368,2627.5,2627.4,1.37]
[1729245623629,2.14368,2627.5,2627.1,0.4254]
[1729245623630,0.38071,2627.4,2627.3,1.7507]
[1729245623825,0.77101,2627.4,2627.3,1.37]
[1729245624134,0.77101,2627.4,2627.1,0.4254]
[1729245624135,1.7603,2627.4,2627.1,0.4254]
[1729245624324,1.75072,2627.2,2627.1,1.7954]
[1729245624730,2.17702,2627.2,2627.1,1.7954]
[1729245624925,2.17702,2627.2,2627.1,2.17614]
[1729245625130,1.7963,2627.2,2626.8,0.38077]
[1729245625331,1.37,2626.9,2626.8,1.75077]
[1729245626528,1.75076,2627.0,2626.9,0.38077]
[1729245626737,1.75076,2627.0,2626.9,1.75077]
[1729245627342,0.38076,2627.0,2626.9,1.75077]
[1729245627733,0.78186,2627.0,2626.9,1.75077]
[1729245627932,0.4263,2627.2,2626.9,1.37]
[1729245628135,0.80704,2627.2,2627.1,1.75074]
[1729245635642,0.80704,2627.2,2627.1,1.37]
[1729245635842,2.17704,2627.2,2627.1,0.38074]
[1729245636039,2.17704,2627.2,2626.8,0.38078]
[1729245636040,0.38076,2627.0,2626.8,0.38078]
[1729245636238,0.38078,2626.8,2626.7,3.2078]
[1729245636447,1.75078,2626.8,2626.7,3.2078]
[1729245636649,2.16458,2626.8,2626.7,3.2078]
[1729245636852,42.96458,2626.8,2626.7,3.2078]
[1729245637751,2.16458,2626.8,2626.7,3.2078]
[1729245639546,8.7988,2626.8,2626.3,0.99528553]
[1729245639743,1.37,2626.4,2626.3,1.75085]
[1729245640249,1.7823,2626.4,2626.3,1.75085]
[1729245641653,0.4123,2626.4,2626.3,1.75085]
[1729245642755,0.4123,2626.4,2626.3,1.37]
[1729245642949,0.79314,2626.4,2626.3,1.75085]
[1729245643141,0.79314,2626.4,2626.3,0.38085]
[1729245643345,0.4123,2626.4,2626.3,1.75085]
[1729245644051,1.7823,2626.4,2626.2,0.404]
[1729245644354,2.16315,2626.4,2626.3,1.37]
[1729245644748,0.38085,2626.3,2626.2,0.404]
[1729245644951,2.55615,2626.3,2626.2,0.404]
[1729245645150,2.1753,2626.3,2626.0,3.2078]
[1729245645342,1.75088,2626.1,2626.0,3.2078]
[1729245646255,1.75088,2626.1,2626.0,3.5887]
[1729245646551,1.37,2626.1,2626.0,3.5887]
[1729245646760,1.37,2626.1,2626.0,4.9587]
[1729245649358,1.37,2626.1,2626.0,1.7509]
[1729245649561,1.37,2626.1,2626.0,4.9587]
[1729245653465,1.37,2626.1,2626.0,1.7509]
[1729245655976,1.75088,2626.1,2626.0,1.7509]
[1729245656178,2.17618,2626.1,2626.0,1.7509]
[1729245656774,2.17618,2626.1,2626.0,1.37]
[1729245657379,2.17618,2626.1,2626.0,1.7509]
[1729245658777,1.7953,2626.1,2626.0,1.7509]
[1729245659961,2.17619,2626.1,2625.9,1.776]
[1729245660159,2.17619,2626.1,2626.0,0.3809]
[1729245660361,1.7953,2626.1,2626.0,0.3809]
[1729245660558,1.7953,2626.1,2625.9,1.776]
[1729245660771,1.7509,2626.0,2625.9,0.406]
[1729245660971,4.5778,2626.0,2625.6,1.75096]
[1729245661173,1.37,2625.7,2625.6,1.75096]
[1729245661369,0.832,2625.9,2625.6,1.37]
[1729245661666,0.832,2625.9,2625.8,1.75093]
[1729245661865,3.2078,2626.0,2625.9,0.38091]
[1729245662063,3.2078,2626.0,2625.9,1.75091]
[1729245663368,3.5887,2626.0,2625.9,1.75091]
[1729245663564,0.4253,2626.1,2625.9,1.75091]
[1729245663565,0.4253,2626.1,2625.9,1.37]
[1729245663867,1.37,2626.3,2626.0,1.37]
[1729245664060,0.38087,2626.2,2626.1,0.407]
[1729245664259,0.38087,2626.2,2626.1,0.8206]
[1729245665471,1.75087,2626.2,2626.1,2.1906]
[1729245665663,0.38087,2626.2,2626.1,2.1906]
[1729245665863,1.75087,2626.2,2626.1,2.1906]
[1729245666464,1.75087,2626.2,2626.1,0.8206]
[1729245666770,1.75087,2626.2,2626.1,2.1906]
[1729245667561,1.37,2626.2,2626.1,2.57148]
[1729245667764,1.37,2626.2,2626.1,2.1906]
[1729245668079,1.75087,2626.2,2626.1,2.57148]
[1729245668368,1.75087,2626.2,2626.1,2.1906]
[1729245669173,0.38087,2626.2,2626.1,2.1906]
[1729245670674,1.37,2626.3,2626.1,2.57148]
[1729245670870,1.37,2626.3,2626.1,1.37]
[1729245671070,1.75088,2626.2,2626.0,2.17929]
[1729245671577,1.37,2626.2,2626.0,1.7984]
[1729245671773,1.75088,2626.2,2626.0,2.1793]
[1729245674865,1.37,2626.1,2626.0,0.4284]
[1729245675065,2.55178,2626.1,2626.0,0.4284]
[1729245675462,0.3809,2626.0,2625.9,1.75091]
[1729245675778,2.1475,2626.0,2625.9,0.38091]
[1729245675978,1.7666,2626.0,2625.9,0.38091]
[1729245676673,0.3966,2626.0,2625.9,1.75091]
[1729245677475,0.8009,2626.1,2625.9,1.37]
[1729245677680,3.2078,2626.3,2626.1,0.38087]
[1729245677977,3.58865,2626.3,2626.2,1.7918]
[1729245679274,3.2078,2626.6,2626.2,1.7918]
[1729245679477,3.2078,2626.6,2626.5,1.75083]
[1729245679677,0.8097,2626.8,2626.7,0.3808]
[1729245679878,0.8097,2626.8,2626.7,1.7508]
[1729245682979,0.393,2627.1,2626.7,1.37]
[1729245683287,0.3925,2627.2,2627.1,0.38074]
[1729245683585,0.3925,2627.5,2627.2,0.38072]
[1729245683791,0.3925,2627.5,2627.4,0.38069]
[1729245683985,0.3925,2627.5,2627.4,1.75069]
[1729245684290,2.209,2627.7,2627.4,1.75069]
[1729245684493,2.58966,2627.7,2627.6,1.37]
[1729245685379,0.3925,2627.9,2627.7,0.38064]
[1729245685685,3.2078,2628.0,2627.8,1.75063]
[1729245685991,3.2078,2628.0,2627.8,0.38063]
[1729245686188,3.58841,2628.0,2627.7,3.75574]
[1729245686393,3.2078,2628.0,2627.7,3.3751]
[1729245686599,3.2078,2628.0,2627.8,0.38063]
[1729245687898,3.58841,2628.0,2627.8,0.38063]
[1729245689098,3.2078,2628.0,2627.8,0.38063]
[1729245689299,0.3806,2628.1,2627.8,0.38063]
[1729245690896,0.3806,2628.1,2627.8,0.38064]
[1729245691096,3.2078,2628.2,2627.9,0.38062]
[1729245691402,3.58839,2628.2,2627.9,0.38062]
[1729245691998,0.3806,2628.1,2627.8,1.19913]
[1729245692701,40.8,2628.0,2627.8,0.8185]
[1729245693001,40.8,2628.0,2627.9,0.38062]
[1729245693496,0.38057,2628.3,2627.9,2.97]
[1729245693704,0.38057,2628.3,2628.1,0.38059]
[1729245694092,0.38057,2628.3,2628.0,0.3806]
[1729245694294,41.9889,2628.4,2628.0,0.3806]
[1729245694295,0.38058,2628.2,2628.0,0.3806]
[1729245694506,0.38058,2628.2,2628.1,0.4298]
[1729245695409,0.38057,2628.3,2628.1,0.81038]
[1729245695701,41.9889,2628.4,2628.1,0.81038]
[1729245695702,42.36945,2628.4,2628.2,0.38057]
[1729245695907,1.1889,2628.4,2628.2,0.38057]
[1729245696413,1.56945,2628.4,2628.2,0.38057]
[1729245696599,1.56945,2628.4,2628.1,0.4298]
[1729245696794,1.56945,2628.4,2628.2,0.38058]
[1729245697602,1.1889,2628.4,2628.2,0.38058]
[1729245698002,0.799,2628.4,2628.2,0.38058]
[1729245698307,44.0078,2628.6,2628.5,0.38054]
[1729245698508,44.38833,2628.6,2628.4,0.38055]
[1729245698703,44.0078,2628.6,2628.3,0.41]
[1729245698907,44.0078,2628.6,2628.1,0.81039]
[1729245699114,0.38056,2628.4,2628.1,0.4298]
[1729245699306,0.4207,2628.3,2628.2,0.38058]
[1729245699502,0.8219,2628.3,2628.1,0.4298]
[1729245699710,0.4086,2628.2,2628.1,0.38059]
[1729245701211,0.8219,2628.3,2628.1,0.38059]
[1729245701904,1.20247,2628.3,2628.1,0.38059]
[1729245704907,1.20247,2628.3,2628.0,2.97]
[1729245705212,0.4086,2628.5,2628.2,0.38058]
[1729245705407,0.4086,2628.5,2628.4,0.38055]
[1729245706006,0.8282,2628.6,2628.5,0.38054]
[1729245706814,0.8282,2628.6,2628.3,3.3732]
[1729245707116,1.20873,2628.6,2628.4,0.38054]
[1729245708118,0.38053,2628.6,2628.3,3.3732]
[1729245708315,0.38053,2628.6,2628.5,0.38054]
[1729245708511,0.38053,2628.6,2628.4,0.38055]
[1729245709815,0.38054,2628.5,2628.3,3.75376]
[1729245710017,0.38054,2628.5,2628.3,3.3732]
[1729245710018,0.77684,2628.5,2628.3,3.3732]
[1729245710204,0.8001,2628.4,2628.3,3.35056]
[1729245710515,1.18065,2628.4,2628.3,3.35056]
[1729245710916,0.38056,2628.3,2628.2,3.2078]
[1729245712129,0.38056,2628.3,2628.1,6.55839]
[1729245712610,0.8001,2628.4,2628.1,6.1778]
[1729245712812,0.8001,2628.4,2628.0,0.38059]
[1729245713012,0.38059,2628.1,2627.9,2.97]
[1729245713217,0.8041,2628.0,2627.9,3.35061]
[1729245715320,0.8041,2628.0,2627.9,2.97]
[1729245715527,1.58501,2628.0,2627.9,2.97]
[1729245715827,1.2044,2628.0,2627.9,3.35062]
[1729245716125,1.58501,2628.0,2627.9,2.97]
[1729245721124,0.38062,2627.9,2627.8,0.78834]
[1729245721319,0.38062,2627.9,2627.8,0.4077]
[1729245721825,0.38062,2627.9,2627.8,1.7777]
[1729245723226,1.37,2627.9,2627.8,1.37]
[1729245723425,1.75062,2627.9,2627.8,1.37]
[1729245723930,0.38062,2627.9,2627.8,1.37]
[1729245724124,1.2044,2628.0,2627.8,1.37]
[1729245724329,0.38062,2627.9,2627.7,0.38065]
[1729245724527,0.38062,2627.9,2627.8,1.37]
[1729245724922,1.58501,2628.0,2627.9,0.38062]
[1729245725125,1.58501,2628.0,2627.9,1.75062]
[1729245725320,1.2044,2628.0,2627.9,1.75062]
[1729245725522,3.2078,2628.2,2627.9,1.37]
[1729245725731,3.2078,2628.2,2628.1,1.75059]
[1729245726230,4.95838,2628.2,2628.1,1.37]
[1729245726527,0.3806,2628.1,2628.0,1.37]
[1729245726724,1.5973,2628.1,2628.0,1.37]
[1729245730235,1.59729,2628.1,2628.0,1.75061]
[1729245733131,1.2167,2628.1,2628.0,1.75061]
[1729245733635,1.2167,2628.1,2628.0,2.17311]
[1729245734225,1.59729,2628.1,2628.0,2.17311]
[1729245734939,1.2167,2628.1,2628.0,2.17311]
[1729245735435,0.4009,2628.1,2628.0,2.17311]
[1729245735621,0.77507,2628.3,2628.1,0.38058]
[1729245735827,0.77507,2628.3,2628.2,1.37]
[1729245737028,0.77507,2628.3,2628.2,1.75058]
[1729245739125,0.77507,2628.3,2628.2,1.37]
[1729245739330,0.77507,2628.3,2628.2,1.75058]
[1729245739636,0.77507,2628.3,2628.2,1.37]
[1729245740829,0.77507,2628.3,2628.2,1.75058]
[1729245741930,0.77507,2628.3,2628.2,1.37]
[1729245743434,0.3945,2628.3,2628.2,1.37]
[1729245743634,0.3945,2628.3,2628.2,1.75058]
[1729245744832,0.77506,2628.3,2628.2,1.75058]
[1729245745035,0.77506,2628.3,2628.2,1.37]
[1729245747639,0.77506,2628.3,2628.2,1.75058]
[1729245749135,1.18206,2628.4,2628.3,0.38056]
[1729245749339,0.7797,2628.6,2628.3,1.37]
[1729245749535,0.38055,2628.4,2628.3,0.38056]
[1729245750238,0.38049,2628.9,2628.3,4.7562]
[1729245750439,0.38049,2628.9,2628.4,0.8441]
[1729245750746,0.38049,2628.9,2628.8,1.37]
[1729245750933,3.58827,2629.0,2628.8,1.37]
[1729245751134,3.58826,2629.0,2628.9,1.37]
[1729245757445,3.2078,2629.0,2628.9,1.75048]
[1729245757633,1.1813,2629.2,2628.9,1.37]
[1729245757841,1.1813,2629.2,2629.1,1.75045]
[1729245758143,1.56173,2629.2,2629.1,1.37]
[1729245758845,1.56173,2629.2,2628.8,3.2078]
[1729245758846,0.38048,2628.9,2628.8,3.2078]
[1729245759046,0.38048,2628.9,2628.8,1.37]
[1729245759754,1.37,2628.9,2628.7,1.37]
[1729245760048,2.5984,2628.8,2628.6,1.37]
[1729245760245,0.38055,2628.4,2628.3,3.2078]
[1729245760448,1.75055,2628.4,2628.3,4.5778]
[1729245760651,4.5778,2628.4,2627.8,0.8292]
[1729245760944,0.38061,2628.0,2627.8,0.8292]
[1729245761245,0.38061,2628.0,2627.9,1.37]
[1729245761840,2.5979,2628.3,2627.9,1.37]
[1729245762042,1.60846,2628.3,2628.2,1.37]
[1729245762249,1.2279,2628.3,2628.2,1.37]
[1729245762442,0.38054,2628.5,2628.2,1.75058]
[1729245762643,0.38054,2628.5,2628.4,1.37]
[1729245762851,0.38053,2628.6,2628.4,1.37]
[1729245763145,0.38053,2628.6,2628.5,1.37]
[1729245768547,1.2241,2628.7,2628.5,1.37]
[1729245768852,1.2241,2628.7,2628.6,1.37]
[1729245769148,0.38051,2628.7,2628.6,1.37]
[1729245770647,0.38054,2628.5,2628.4,0.3919]
[1729245770950,0.38054,2628.5,2628.4,1.7619]
[1729245771153,0.38054,2628.5,2628.4,1.37]
[1729245771342,1.19814,2628.5,2628.4,1.37]
[1729245775647,0.38056,2628.3,2628.2,0.4271]
[1729245775955,0.38056,2628.3,2628.0,0.38061]
[1729245775956,0.3806,2628.1,2628.0,0.38061]
[1729245776250,0.3806,2628.1,2628.0,1.75061]
[1729245777250,0.3806,2628.1,2628.0,2.18041]
[1729245779249,0.3806,2628.1,2628.0,1.7998]
[1729245779452,0.38062,2627.9,2627.8,0.79974]
[1729245779653,0.38062,2627.9,2627.8,2.55694]
[1729245780164,0.38062,2627.9,2627.8,2.55693]
[1729245780346,0.4295,2628.0,2627.8,2.1763]
[1729245780551,0.38062,2627.9,2627.8,1.58842]
[1729245781742,0.4295,2628.0,2627.7,3.2078]
[1729245781743,0.38064,2627.8,2627.7,3.2078]
[1729245781950,0.79364,2627.8,2627.7,4.5778]
[1729245782757,0.79364,2627.8,2627.7,1.37]
[1729245782956,0.38065,2627.7,2627.6,1.37]
[1729245783258,1.7858,2627.7,2627.6,1.37]
[1729245784951,3.2078,2627.9,2627.8,0.38064]
[1729245785155,0.38058,2628.2,2627.8,5.1756]
[1729245785345,0.38058,2628.2,2627.7,1.2]
[1729245785346,0.38058,2628.2,2628.1,1.37]
[1729245785751,0.38058,2628.2,2628.1,1.7612]
[1729245786559,0.38058,2628.3,2628.1,1.7612]
[1729245786751,0.38058,2628.3,2628.2,1.37]
[1729245787760,0.8319,2628.4,2628.1,0.7896]
[1729245787957,0.38058,2628.2,2628.1,0.7896]
[1729245788253,1.21245,2628.4,2628.2,0.38057]
[1729245788446,3.2078,2628.5,2628.4,0.38055]
[1729245788650,0.3805,2628.8,2628.6,0.38051]
[1729245788845,3.58829,2628.9,2628.7,3.7644]
[1729245789053,3.2078,2628.9,2628.7,3.7644]
[1729245789262,0.38049,2628.8,2628.7,3.7644]
[1729245789460,3.2078,2628.9,2628.7,3.7644]
[1729245789853,0.38049,2628.8,2628.7,3.7644]
[1729245790158,0.3931,2629.0,2628.8,0.38049]
[1729245790366,0.3931,2629.0,2628.9,2.97]
[1729245790867,0.38046,2629.1,2628.9,2.97]
[1729245791156,0.38045,2629.1,2628.9,2.97]
[1729245791462,0.38045,2629.1,2628.9,3.35048]
[1729245791761,0.38045,2629.1,2628.9,3.35047]
[1729245792056,0.38044,2629.2,2629.0,0.38046]
[1729245792254,7.28339043,2629.3,2629.0,0.38046]
[1729245792454,48.08339043,2629.3,2629.0,0.38046]
[1729245792655,48.08339043,2629.3,2628.9,2.97]
[1729245792656,6.90296043,2629.3,2628.9,2.97]